Cogmind - Beta 11.1 @@@ ROGUE MODE // 2022.09.26 @ 18:58:05 Player: youngster Result: Self-destructed Performance ------------- Evolutions (2) 1000 Regions Visited (7) 1400 Robots Destroyed (107) 535 Value Destroyed (2357) 2357 Prototype IDs (48) 960 Alien Tech Used (0) 0 Bonus (-314) -314 TOTAL SCORE: 5938 Bonus ------- High Alert Combat Kills 41 Follower Combat Kills 135 Aligned with FarCom 300 Friendly Fire -790 Cogmind --------- Core Integrity 540/550 Matter 219/300 Energy 240/240 System Corruption 0% Temperature Cool (0) Movement Rolling (225) Ox9 Location -8/Materials Parts ------- > --- POWER (1) -------- Nuclear Core > --- PROPULSION (2) --- Armored Treads Armored Wheel > --- UTILITY (5) ------ Huge Storage Unit Seismic Detector Heavy Armor Plating Shield Generator > --- WEAPON (3) ------- Precision Assault Rifle Precision Assault Rifle Precision Assault Rifle > --- INVENTORY (25) --- Reinforced Fission Core Armored Treads Armored Treads Armored Treads Armored Treads Compact Wheel Experimental Heat Sink High-capacity Matter Pod (200) Improved Signal Interpreter Advanced Terrain Scan Processor Experimental Targeting Computer Heavy Armor Plating Heavy Armor Plating Reactive Plating Shield Generator Long-range Tractor Beam EM Pulse Cannon Improved Assault Rifle Precision Assault Rifle Grenade Launcher Mini Grenade Launcher Datajack Makeshift Hammer Peak State ------------ > --- POWER ------------ Light Neutrino Core > --- PROPULSION ------- Potential Leg Potential Leg > --- UTILITY ---------- Huge Storage Unit 8R-AWN's Armor/EX > --- WEAPON ----------- Autogun Autogun > --- INVENTORY -------- Reinforced Ion Engine Reinforced Fission Core Light Treads Light Treads Light Treads Light Treads Light Treads Light Treads Light Treads Compact Wheel Armored Wheel Experimental Heat Sink Cooling System High-capacity Matter Pod Experimental Targeting Computer Shield Generator Shield Generator Improved System Guard Light EM Pulse Cannon Heavy Assault Rifle Improved Assault Rifle Grenade Launcher Mini Grenade Launcher Makeshift Hammer [Rating: 67] Favorites ----------- Power Ion Engine Engine Ion Engine Power Core Nuclear Core Propulsion Light Treads Treads Light Treads Leg Potential Leg Wheel Armored Wheel Utility Light Armor Plating Device Shield Generator Storage Huge Storage Unit Protection Light Armor Plating Weapon Improved Assault Rifle Energy Gun EM Pulse Gun Energy Cannon Light EM Pulse Cannon Ballistic Gun Improved Assault Rifle Launcher Mini Grenade Launcher Impact Weapon Makeshift Hammer Special Melee Weapon Datajack Build | -11 -10 -10 -9 -9 -9 -8 -8 ------- Run | Scr Mat Min Mat Min Exi Min Mat Slots Evolved 4 | . . . 2 . . . 2 Power . | . . . . . . . . Propulsion . | . . . . . . . . Utility 3 | . . . 2 . . . 1 Weapon 1 | . . . . . . . 1 Parts Attached 133 | 6 23 7 33 13 22 6 23 Power 9 | 1 2 . 1 2 2 . 1 Engine 7 | 1 2 . 1 2 1 . . Core 2 | . . . . . 1 . 1 Reactor . | . . . . . . . . Propulsion 36 | 2 4 . 11 2 4 6 7 Treads 25 | 2 4 . 9 1 2 3 4 Leg 2 | . . . . . 2 . . Wheel 9 | . . . 2 1 . 3 3 Hover . | . . . . . . . . Flight . | . . . . . . . . Utility 27 | 1 2 . 9 . 6 . 9 Device 12 | . . . 4 . 2 . 6 Storage 4 | 1 2 . 1 . . . . Processor . | . . . . . . . . Hackware . | . . . . . . . . Protection 11 | . . . 4 . 4 . 3 Artifact . | . . . . . . . . Weapon 61 | 2 15 7 12 9 10 . 6 Energy Gun 4 | 1 3 . . . . . . Energy Cannon 1 | . . . . . 1 . . Ballistic Gun 31 | 1 5 4 7 3 6 . 5 Ballistic Cannon . | . . . . . . . . Launcher 19 | . 7 3 3 4 2 . . Special Weapon . | . . . . . . . . Impact Weapon 5 | . . . 2 2 . . 1 Slashing Weapon . | . . . . . . . . Piercing Weapon . | . . . . . . . . Special Melee Weapon 1 | . . . . . 1 . . Unidentified Prototypes 2 | . . . 1 . . . 1 Parts Lost 11 | . . . 5 . 6 . . Power 1 | . . . 1 . . . . Propulsion . | . . . . . . . . Utility 8 | . . . 4 . 4 . . Weapon 2 | . . . . . 2 . . Highest Loss Streak 3 | . . . 2 . 3 . . To Critical Strikes 2 | . . . . . 2 . . Average Slot Usage (%) 94 | . 99 100 95 100 97 77 89 Engine 11 | . 14 14 11 11 11 11 8 Treads 15 | . 27 28 16 11 9 11 9 Wheel 6 | . . . 5 10 9 10 8 Device 7 | . . . 10 11 10 . 16 Storage 15 | . 27 28 16 11 11 11 9 Protection 11 | . . . 12 22 20 11 10 Energy Gun 1 | . 6 . . . . . . Ballistic Gun 19 | . 20 27 19 16 8 22 26 Launcher 1 | . . . . 2 7 . . Impact Weapon 1 | . . . 2 3 . . . Naked Turns . | . . . . . . . . Heaviest Build 124 | 14 41 40 99 104 120 120 124 Greatest Support 60 | 40 40 40 40 40 60 12 12 Greatest Overweight (x) 10 | . 1 . 8 8 8 9 10 Average Overweight (x) 4 | . . . 4 7 7 9 9 Largest Inventory Capacity 25 | 8 15 15 25 25 25 25 25 Average Capacity 21 | 6 14 15 19 25 25 25 25 Most Carried 25 | 3 15 15 25 25 25 25 25 Average Carried 20 | 2 11 14 18 24 23 24 24 Final Capacity 25 | 8 15 15 25 25 25 25 25 Final Carried 25 | 3 15 15 25 25 25 25 25 Class Distribution -------------------- 67% | Mutant 21% | Scavenger-Mutant 6% | Scavenger-Tank 5% | Tank Dominant Class ---------------- Mutant | -10/Materials Mutant | -10/Mines Mutant | -9/Materials Scavenger-Mutant | -9/Mines Scavenger-Mutant | -9/Exiles Mutant | -8/Mines Scavenger-Tank | -8/Materials Resources | -11 -10 -10 -9 -9 -9 -8 -8 ----------- Run | Scr Mat Min Mat Min Exi Min Mat Matter Collected 3681 | 226 760 147 919 277 551 272 529 Remotely . | . . . . . . . . Salvage Created 3899 | . 870 92 1557 249 146 318 667 Parts 258 | . 62 11 99 13 19 13 41 Haulers Intercepted 11 | . 2 . 6 . . . 3 Recyclers Shooed 3 | . 1 . . . . 1 1 Parts Field Recycled . | . . . . . . . . Retrieved Matter . | . . . . . . . . Parts Self-Destructed . | . . . . . . . . Prevented . | . . . . . . . . Kills | -11 -10 -10 -9 -9 -9 -8 -8 ------- Run | Scr Mat Min Mat Min Exi Min Mat Combat Hostiles Destroyed 77 | . 18 6 25 11 4 6 7 Guns 49 | . 9 1 19 6 1 6 7 AOE 28 | . 9 5 6 5 3 . . Classes Destroyed 12 | . 7 . 4 1 . . . Worker 7 | . 2 . 4 . . 1 . Builder 4 | . 2 1 1 . . . . Tunneler 1 | . . . 1 . . . . Hauler 11 | . 2 . 6 . . . 3 Recycler 7 | . 1 . 3 1 . . 2 Operator 1 | . . . 1 . . . . Watcher 8 | . 3 . 2 . . . 3 Swarmer 20 | . 6 5 6 . . . 3 Grunt 35 | . 12 1 11 4 . 6 1 Duelist 1 | . . . 1 . . . . Sentry 10 | . . . 7 . . . 3 Assembled 14 | . . . . 7 7 . . Best Kill Streak 6 | . 6 3 6 6 4 4 4 Combat Bots Only 5 | . 5 3 5 5 3 3 3 Max Kills in Single Turn 4 | . 3 2 3 3 4 1 1 Gunslinging 1 | . . . . 1 . . . Exploded 3 | . 3 2 3 3 3 . . Melee . | . . . . . . . . Uniques/NPCs Destroyed 2 | . . . . . 2 . . EX-HEX (-9/Exiles) 8R-AWN (-9/Exiles) Combat | -11 -10 -10 -9 -9 -9 -8 -8 -------- Run | Scr Mat Min Mat Min Exi Min Mat Damage Taken 3057 | . 359 182 904 196 923 402 91 Core 340 | . 45 48 110 . 95 32 10 Absorbed by Shields 474 | . . . 229 74 136 . 35 Regen/Repaired (Parts) 455 | . 99 . 95 . . . 261 Core Remaining (%) 67 | 100 . 62 . . . 40 . Volleys Fired 295 | . 67 14 96 19 40 25 34 Largest 3 | . 2 2 2 2 2 2 3 Hottest 84 | . 60 40 46 46 79 46 84 Shots Fired 583 | . 118 23 181 32 79 48 102 Gun 538 | . 102 18 172 26 70 48 102 Cannon 5 | . . . . . 5 . . Launcher 40 | . 16 5 9 6 4 . . Special . | . . . . . . . . Kinetic 500 | . 64 18 172 26 70 48 102 Thermal . | . . . . . . . . Explosive 32 | . 8 5 9 6 4 . . Electromagnetic 51 | . 46 . . . 5 . . Robot Hit Streak 21 | . 8 4 21 9 12 15 19 Robot Miss Streak 6 | . 6 4 5 2 2 2 3 Penetration Max . | . . . . . . . . Secondary Targets 3 | . 1 . . 1 1 . . Max Gunslinging Chain 1 | . 1 . . 1 1 . . Shots Hit Robots 400 | . 64 8 144 16 64 38 66 Core Hits 200 | . 43 13 56 17 30 18 23 Critical Kills 1 | . . . . . . . 1 Critical Parts Destroyed 2 | . . . 2 . . . . Critical Strikes 3 | . . . 2 . . . 1 Destroy 2 | . . . 1 . . . 1 Smash 1 | . . . 1 . . . . Melee Attacks 18 | . . . 10 1 5 . 2 Impact 13 | . . . 10 1 . . 2 Slashing . | . . . . . . . . Piercing . | . . . . . . . . Sneak Attacks 11 | . . . 6 . 5 . . Combat Hostiles . | . . . . . . . . Follow-up Attacks . | . . . . . . . . Damage Inflicted 8668 | . 1567 396 3009 578 1333 573 1212 Guns 5893 | . 804 97 2116 246 845 573 1212 Cannons 3 | . . . . . 3 . . Explosions 2158 | . 753 297 291 332 485 . . Melee 597 | . . . 597 . . . . Ramming 17 | . 10 2 5 . . . . Kinetic 5555 | . 466 97 2116 246 845 573 1212 Thermal 107 | . 107 . . . . . . Explosive 1865 | . 460 297 291 332 485 . . Electromagnetic 527 | . 524 . . . 3 . . Impact 597 | . . . 597 . . . . Slashing . | . . . . . . . . Piercing . | . . . . . . . . Highest Corruption . | . . . . . . . . Average Corruption . | . . . . . . . . Corruption Purged . | . . . . . . . . Corruption Blocked . | . . . . . . . . Overload Shots . | . . . . . . . . Overflow Damage 527 | . 10 33 433 38 13 . . Projectiles . | . . . . . . . . Explosions 97 | . 10 33 3 38 13 . . Melee 430 | . . . 430 . . . . Knockbacks 1 | . . . 1 . . . . Impact 1 | . . . 1 . . . . Kinetic . | . . . . . . . . Secondary . | . . . . . . . . Self-Inflicted Damage 169 | . 17 26 55 71 . . . Shots 9 | . 2 2 3 2 . . . Rammed 10 | . 3 3 4 . . . . Targets Rammed 11 | . 3 3 5 . . . . Kicked . | . . . . . . . . Crushed 1 | . . . 1 . . . . Highest Temperature 179 | . 30 2 22 20 179 93 162 Average Temperature 40 | . 12 2 5 6 60 37 50 Received Heat Transfer 809 | . 102 66 338 34 . 225 44 Siege Activations . | . . . . . . . . Robots Corrupted . | . . . . . . . . Combat Hostiles . | . . . . . . . . Parts Fried 11 | . 1 . 10 . . . . Impact Corruptions 10 | . . . 10 . . . . Robots Melted . | . . . . . . . . Combat Hostiles . | . . . . . . . . Parts Melted . | . . . . . . . . Heat Transferred 150 | . 150 . . . . . . Parts Sabotaged . | . . . . . . . . Parts Stolen . | . . . . . . . . Parts Stripped . | . . . . . . . . Power Chain Reactions 3 | . 3 . . . . . . Missiles Intercepted . | . . . . . . . . Alert | -11 -10 -10 -9 -9 -9 -8 -8 ------- Run | Scr Mat Min Mat Min Exi Min Mat Peak Influence 512 | . 410 232 512 275 . 75 108 Initial 195 | . . 63 61 195 . . . Average 175 | . 198 136 337 79 . 39 39 Maximum Alert Level 2 | . 2 1 2 1 . . . Low Security (%) 62 | 100 49 78 26 81 . 100 100 Level 1 21 | . 49 21 25 18 . . . Level 2 15 | . 1 . 48 . . . . Level 3 . | . . . . . . . . Level 4 . | . . . . . . . . Level 5 . | . . . . . . . . High Security . | . . . . . . . . Max Security . | . . . . . . . . Squads Dispatched 13 | . 6 . 7 . . . . Investigation 8 | . 5 . 3 . . . . Extermination . | . . . . . . . . Reinforcement 5 | . 1 . 4 . . . . Assault . | . . . . . . . . Garrison . | . . . . . . . . Intercept . | . . . . . . . . Searches Triggered . | . . . . . . . . Construction Impeded 1 | . . . 1 . . . . Haulers Reinforced . | . . . . . . . . Active Scanning Responses . | . . . . . . . . Cargo Convoy Interrupts . | . . . . . . . . Stealth | -11 -10 -10 -9 -9 -9 -8 -8 --------- Run | Scr Mat Min Mat Min Exi Min Mat Distress Signals 5 | . . 1 . . . . 4 Communications Jammed . | . . . . . . . . Distress Signals . | . . . . . . . . Times Spotted 119 | . 29 10 34 22 4 6 14 Peak Tracking Total 5 | . 4 3 4 5 5 3 3 Tactical Retreats 5 | . . 2 1 2 . . . Traps | -11 -10 -10 -9 -9 -9 -8 -8 ------- Run | Scr Mat Min Mat Min Exi Min Mat Traps Triggered 2 | . 2 . . . . . . Indirectly . | . . . . . . . . Trap Hack Attempts . | . . . . . . . . Triggered . | . . . . . . . . Disarmed 6 | . . . . . . . 6 Reprogrammed . | . . . . . . . . Reused . | . . . . . . . . Traps Extracted . | . . . . . . . . Installed 3 | . . . . 3 . . . Triggered . | . . . . . . . . Machines | -11 -10 -10 -9 -9 -9 -8 -8 ---------- Run | Scr Mat Min Mat Min Exi Min Mat Machines Disabled 9 | . . 1 1 1 4 . 2 Max in Single Turn 2 | . . 1 . 1 2 . 1 Machines Sabotaged . | . . . . . . . . Garrisons Compromised . | . . . . . . . . Overloaded Fab Kills . | . . . . . . . . Hacking | -11 -10 -10 -9 -9 -9 -8 -8 --------- Run | Scr Mat Min Mat Min Exi Min Mat Machines Accessed 32 | . 10 . 10 . 2 . 10 Terminals 21 | . 7 . 7 . . . 7 Fabricators . | . . . . . . . . Repair Stations 4 | . 1 . 1 . . . 2 Recycling Units 4 | . 2 . 1 . . . 1 Scanalyzers 1 | . . . 1 . . . . Garrison Access . | . . . . . . . . Total Hacks 99 | . 30 . 31 . 2 . 36 Successful 64 | . 21 . 17 . 2 . 24 Failed 34 | . 8 . 14 . . . 12 Catastrophic 4 | . 2 . 2 . . . . Database Lockouts 1 | . 1 . . . . . . Manual 51 | . 16 3 15 . 1 . 16 Terminals 72 | . 22 . 21 . . . 29 Fabricators . | . . . . . . . . Repair Stations 15 | . 6 . 3 . . . 6 Recycling Units 4 | . 2 . 1 . . . 1 Scanalyzers 6 | . . . 6 . . . . Garrison Access . | . . . . . . . . Terminal Hacks 32 | . 9 . 8 . 2 . 13 Record 1 | . . . . . 1 . . Part Schematic 2 | . 1 . 1 . . . . Robot Analysis 5 | . 3 . 1 . . . 1 Prototype ID Bank 6 | . 1 . 2 . . . 3 Repair Station Index 1 | . 1 . . . . . . Unreport Threat 1 | . . . . . . . 1 Locate Traps 7 | . 1 . 4 . . . 2 Disarm Traps 1 | . . . . . . . 1 Recall Investigation 1 | . 1 . . . . . . Hauler Manifests 3 | . 1 . . . . . 2 Zone Layout 3 | . . . . . . . 3 EX-Prototype ID Bank 1 | . . . . . 1 . . Fabricator Hacks . | . . . . . . . . Repair Station Hacks 13 | . 6 . 2 . . . 5 Scan Component 7 | . 3 . 1 . . . 3 Repair 6 | . 3 . 1 . . . 2 Recycling Unit Hacks 1 | . . . . . . . 1 Retrieve Components 1 | . . . . . . . 1 Scanalyzer 6 | . . . 6 . . . . Insert Component 3 | . . . 3 . . . . Analyze 3 | . . . 3 . . . . Garrison Access Hacks . | . . . . . . . . Unauthorized Hacks 12 | . 6 . 1 . . . 5 Terminals 9 | . 4 . . . . . 5 Track 1 | . 1 . . . . . . Assimilate 3 | . . . . . . . 3 Botnet 3 | . 2 . . . . . 1 Operators 2 | . 1 . . . . . 1 Fabricators . | . . . . . . . . Repair Stations . | . . . . . . . . Recycling Units 3 | . 2 . 1 . . . . Tunnel 3 | . 2 . 1 . . . . Scanalyzers . | . . . . . . . . Garrison Access . | . . . . . . . . Data Cores Recovered . | . . . . . . . . Used . | . . . . . . . . Hacking Detections 24 | . 8 1 9 . . . 6 Full Trace Events 3 | . 2 1 . . . . . Feedback Events . | . . . . . . . . Feedback Blocked . | . . . . . . . . Robot Schematics Acquired . | . . . . . . . . Robots Built . | . . . . . . . . Authchips . | . . . . . . . . Time . | . . . . . . . . Total Robot Build Rating . | . . . . . . . . Part Schematics Acquired 5 | . 1 . 4 . . . . Parts Built . | . . . . . . . . Authchips . | . . . . . . . . Time . | . . . . . . . . Total Part Build Rating . | . . . . . . . . Parts Repaired 6 | . 3 . 1 . . . 2 Time 199 | . 78 . 51 . . . 70 Parts Recycled . | . . . . . . . . Recycled Matter . | . . . . . . . . Retrieved Matter . | . . . . . . . . Retrieved Components 9 | . . . . . . . 9 Parts Scanalyzed 3 | . . . 3 . . . . Part Schematics Acquired 3 | . . . 3 . . . . Parts Damaged . | . . . . . . . . Bothacking | -11 -10 -10 -9 -9 -9 -8 -8 ------------ Run | Scr Mat Min Mat Min Exi Min Mat Used RIF Installer . | . . . . . . . . Robots Hacked 4 | . . . . . 4 . . Non-combat 3 | . . . . . 3 . . Combat 1 | . . . . . 1 . . Robot Hacks Applied 4 | . . . . . 4 . . parse_system 4 | . . . . . 4 . . Relay Couplers Released . | . . . . . . . . Fabnet Peak Effective % . | . . . . . . . . Robots Rewired . | . . . . . . . . Allies Hacked . | . . . . . . . . Hacks Repelled . | . . . . . . . . Allies | -11 -10 -10 -9 -9 -9 -8 -8 -------- Run | Scr Mat Min Mat Min Exi Min Mat Total Allies 5 | . . 3 . . . . 2 Largest Group 3 | . . 3 3 . . . 2 Highest-Rated Group 40 | . . 40 40 . . . 20 Highest-Rated Ally 16 | . . 16 16 . . . 10 Total Orders 6 | . . . . . . . 6 STAY 3 | . . . . . . . 3 FOLLOW 3 | . . . . . . . 3 Ally Attacks 30 | . . 14 16 . . . . Total Damage 274 | . . 123 151 . . . . Kills 9 | . . 5 4 . . . . Allies Corrupted . | . . . . . . . . Allies Melted . | . . . . . . . . Intel | -11 -10 -10 -9 -9 -9 -8 -8 ------- Run | Scr Mat Min Mat Min Exi Min Mat Robot Analysis Total 5 | . 3 . 1 . . . 1 Derelict Logs Recovered 2 | . . 1 . 1 . . . Drone Launches . | . . . . . . . . Drone Recoveries . | . . . . . . . . Exploration | -11 -10 -10 -9 -9 -9 -8 -8 ------------- Run | Scr Mat Min Mat Min Exi Min Mat Turns Passed 14185 | 85 2168 947 3831 2100 2017 1325 1712 Spaces Moved 5897 | 47 1029 552 1508 664 892 557 648 Core 1 | 1 . . . . . . . Treads 2367 | 46 1029 552 732 3 5 . . Legs 103 | . . . . . 103 . . Wheels 3426 | . . . 776 661 784 557 648 Hover . | . . . . . . . . Flight . | . . . . . . . . Fastest Speed 50 | 50 160 160 160 210 125 225 225 Average Speed 201 | 157 160 160 222 210 204 225 227 Slowest Speed 320 | 160 240 160 240 320 320 225 240 Overloaded Moves 34 | . . . . . 34 . . Propulsion Burnouts . | . . . . . . . . Robots Hopped . | . . . . . . . . Cave-ins Triggered . | . . . . . . . . Exploration Rate (%) 76 | 4 99 99 98 99 69 93 52 Regions Visited 7 Branch Regions 4 Pre-discovered Areas 5 | . 2 1 1 . 1 . . Known Exits Taken . | . . . . . . . . Unknown Exits Taken 7 | 1 1 1 1 1 1 1 . Scrap Searched 5 | . . 1 . 3 . 1 . Spaces Dug 83 | . 23 5 35 18 . . 2 Terrain Destroyed 213 | . 54 38 52 55 12 . 2 Melee 5 | . . . 2 1 . . 2 Projectile . | . . . . . . . . AOE 208 | . 54 38 50 54 12 . . Terrain Rammed . | . . . . . . . . Walls Destroyed . | . . . . . . . . Machines Disabled . | . . . . . . . . Actions | -11 -10 -10 -9 -9 -9 -8 -8 --------- Run | Scr Mat Min Mat Min Exi Min Mat Total 7638 | 55 1418 589 1807 1335 1021 590 823 Wait 1081 | . 278 10 92 626 1 . 74 Move 5890 | 46 1028 551 1507 663 891 556 648 Hop . | . . . . . . . . Pick Up 101 | 3 12 2 33 3 29 1 18 Fast Attach 25 | 6 3 . 6 2 4 . 4 Attach 14 | . . . 4 1 6 . 3 Detach 6 | . 1 . . 1 4 . . Swap 94 | . 20 7 23 10 12 6 16 Drop 100 | . 6 2 31 6 29 2 24 Fire 295 | . 67 14 96 19 40 25 34 Melee 18 | . . . 10 1 5 . 2 Ram . | . . . . . . . . Kick . | . . . . . . . . Crush 11 | . 3 3 5 . . . . Escape Stasis . | . . . . . . . . Rewire . | . . . . . . . . Trap 3 | . . . . 3 . . . Miscellaneous . | . . . . . . . . Route ------- -11/Scrapyard -10/Materials (discovered 4 exits: *Mat x3 / *Min) -10/Mines (discovered 2 exits: *Mat x2) -9/Materials (discovered 5 exits: *Mat x3 / [*Min x2]) -9/Mines (discovered 3 exits: *Mat x2 / *Exi) -9/Exiles -8/Mines (discovered 2 exits: *Mat x2) -8/Materials (discovered 2 exits: [*Fac x2]) History --------- Turn | Location | Event 24 | -11/Scrapyard | Discovered new exit (range 16) 86 | -11/Scrapyard | Entered Materials 330 | -10/Materials | Build established: Mutant 334 | -10/Materials | Discovered new exit (range 15) 497 | -10/Materials | Repaired Lgt. Treads 525 | -10/Materials | Repaired Lgt. Treads 577 | -10/Materials | Central database locked down 761 | -10/Materials | Discovered new exit (range 16) 962 | -10/Materials | Discovered new exit (range 10) 1781 | -10/Materials | Discovered new exit (range 3) 2050 | -10/Materials | Repaired EM Pulse Gun 2254 | -10/Materials | Entered Mines 2501 | -10/Mines | Discovered new exit (range 8) 2528 | -10/Mines | Learned location of Zion (-7) 2541 | -10/Mines | A weapon hastily lodged in a ceiling crevice suddenly fell to the ground 2606 | -10/Mines | Assisted by bots powering up and referring to "LRC-V3" 2702 | -10/Mines | Discovered new exit (range 7) 3201 | -10/Mines | Entered Materials 3201 | -9/Materials | Accompanied by 3 allies 3201 | -9/Materials | Evolved 2 slots: Utility x2 3667 | -9/Materials | Discovered new exit (range 16) 4148 | -9/Materials | Discovered new exit (range 16) 4431 | -9/Materials | Discovered new exit (range 15) 5109 | -9/Materials | Discovered new exit (range 9) 5548 | -9/Materials | Discovered new exit (range 3) 6161 | -9/Materials | Repaired Imp. Assault Rifle 7032 | -9/Materials | Entered Mines 7033 | -9/Mines | Met a Derelict testing a Signal Generator 7198 | -9/Mines | Discovered new exit (range 10) 7354 | -9/Mines | Deemed a non-threat by the Exiles lab entrance 7438 | -9/Mines | Learned Materials emergency access door positions 7727 | -9/Mines | Found a hidden stash of uninstalled traps 7932 | -9/Mines | Assembled infested the area 7937 | -9/Mines | Assisted by a Guerilla fighting off Assembled 8163 | -9/Mines | Build established: Scavenger-Mutant 8895 | -9/Mines | Discovered new exit (range 7) 9124 | -9/Mines | Discovered new exit (range 5) 9132 | -9/Mines | Entered Exiles 9263 | -9/Exiles | Met 8R-AWN 9294 | -9/Exiles | Met EX-HEX 9383 | -9/Exiles | Met EX-BIN 9456 | -9/Exiles | Met EX-DEC 9652 | -9/Exiles | Aligned with FarCom system 9654 | -9/Exiles | Given EX-Vault access code 9703 | -9/Exiles | Opened EX-Vault 9755 | -9/Exiles | Warned to stay clear of 0b10 Research branches 9892 | -9/Exiles | Discovered new exit (range 14) 10152 | -9/Exiles | Found Potential Leg 10155 | -9/Exiles | Found Potential Leg 10825 | -9/Exiles | Attacked by the Exiles 10836 | -9/Exiles | Destroyed EX-HEX 10903 | -9/Exiles | Lost 3 parts (2u1w) 10947 | -9/Exiles | Core integrity fell below 50% 10950 | -9/Exiles | Destroyed 8R-AWN 10961 | -9/Exiles | Found 8R-AWN's Armor/EX 10965 | -9/Exiles | Found Exp. Targeting Computer 10972 | -9/Exiles | Lost 3 parts (2u1w) 11117 | -9/Exiles | Build established: Mutant 11149 | -9/Exiles | Entered Mines 11669 | -8/Mines | Discovered new exit (range 14) 11943 | -8/Mines | Discovered new exit (range 13) 12474 | -8/Mines | Entered Materials 12474 | -8/Materials | Evolved 2 slots: Utility x1, Weapon x1 12737 | -8/Materials | Repaired Arm. Treads? 12814 | -8/Materials | Build established: Scavenger-Tank 13266 | -8/Materials | Discovered new exit (range 5) 13733 | -8/Materials | Build established: Tank 13802 | -8/Materials | Repaired Arm. Wheel 14090 | -8/Materials | Discovered new exit (range 17) 14186 | -8/Materials | Self-destructed Last Messages --------------- Retrieving Zone 6M layout... Downloaded map data. >>Traps(Locate) Found 6 traps in 1 array: 6x Proton Bomb Trap Map updated. >>Traps(Disarm) Disarmed 6 Proton Bomb Traps. 14092_ K-01 Serf cleans the Terminal. 14134_ Destroyed Imp. Hover Unit. 14137_ Destroyed Lgt. Deuterium Engine. 14140_ Destroyed Imp. Sensor Array. 14140_ W-25 Informer destroyed. 14162_ W-25 Informer sends out distress signal. 14166_ W-25 Informer destroyed. 14169_ S-10 Pest destroyed. 14175_ U-05 Engineer builds a Door. 14178_ Electrolysis Chamber disabled. 14178_ S-10 Pest destroyed. 14181_ Acquired 15 matter. Map ----- +----------------------------------------------------+ | ?????????????????????????????????????????????????? | | ?????????????????????????????????????????????????? | | ?????????????????????????????????????????????????? | | ?????????????????????????????????????????????????? | | ?????????????????????????????????????????????????? | | ?????????????????????????????????????????????????? | | ?????????????????????????????????????????????????? | | ?????????????????????????????????????????????????? | | ?????????????????????????????????????????????????? | | ?????????????????????????????????????????????????? | | ?????????????????????????????????????????????????? | | ?????????????????????????????????????????????????? | | ?????????????????????????????????????????????o???? | | ?????????????????????????????????????????????????? | | ????????????????#####????????????????????????????? | | ????????????????# #??????????????????????+?????? | | ???????# # < #??# #???????????????? | | ???????# # #??# ###?????????????? | | ???????# + ##########+### ?????????????? | | ???????# # !% ?????????????? | | ???????# # ?????????????? | | ???????########## ?????????????? | | ????????????????# ############ ?????????????? | | ????????????????# #!= #???# ?????????????? | | ????????????????# #*%= [ #???# ? ???????????? | | ????????????????# + "" @*##### ???????????? | | ????????????????# # """u%+! ?????????????? | | ????????????????# # """ %##### ?????????????? | | ????????????????# # #???# ?????????????? | | ????????????????# ########???# ?????????????? | | ????????????????# ##?????????#####?????????????? | | ????????????????# T#??????????# ?????????????? | | ????????????????# ##??????????# ?????????????? | | ????????????????# #???????????# ?????????????? | | ????????????????# #???????????# ?????????????? | | ????????????????# #???????????# ?????????????? | | ????????????????# #???????????# ?????????????? | | ###?????????????# #???????????# ?????????????? | | #?????????????# #???????????# ?????????????? | | #?????????????# #???????????# ?????????????? | | #???########??# #?###???????####?????????????? | | #???# #??# ### ############?????????????? | | #???#] """ #??# # # ?????????????? | | = #???# """ #??# # """ """ # ??+??????????? | | #???# """ #??# # "R """ # ""?????????????? | | #???# #??# # """ """ # ""?????????????? | | #???# #??# + # ""?????????????? | | ##########+###### # #??????????????????? | | *! = # #??????????????????? | | ! * == #! #??????????????????? | +----------------------------------------------------+ Best States ------------- Heat Dissipation 57 Energy Generation 14 Energy Capacity 265 Matter Stores 300 Matter Capacity 300 Sight Range 16 Terrain Scan Density 10 Armor Coverage 900 Resistance: KI 20 Resistance: EX 90 Evasion (%) 40 Recoil Reduction 2 Item Schematics ----------------- Huge Storage Unit | -10/Materials | Hacked Plasma Cutter | -9/Materials | Hacked Imp. Assault Rifle | -9/Materials | Scanalyzed Arm. Wheel | -9/Materials | Scanalyzed Lgt. Armor Plating | -9/Materials | Scanalyzed Robot Schematics ------------------ None Fabricated ------------ Nothing Alien Tech Used ----------------- None Achievements -------------- None Challenges ------------ None Game ------ Seed HeartExplosiveDoublenader Manual? 0 Play Time 01:23:54 Cumulative 312.8 hours Start 2022.06.01 @ 12:36:29 End 2022.09.26 @ 18:58:05 Sessions 17 Manual Loads 0 Difficulty Rogue Special Mode None Game No. 137 Rogue 137 Adventurer 0 Explorer 0 Win Type - Total 8 Types 5/0/1/1/0/0/0/1/0 Lore% 88 Gallery% 91 Achievement% 70 Wizard Run 0 Options --------- ASCII 0 Keyboard 1 Movement Vi Keybinds 0 Fullscreen 2 Font 18/Cog Map View 76x50 Tactical HUD 1 Map Filters NONE Filters NONE Steam 0 RUN: 1accfd6b-2589-4849-aa17-db06e23ccf20